fUSD/lending_fUSD_20240725
["ID","MTS","AMOUNT","RATE_DAILY","PERIOD"]
[333142457,1721885504209,-2838.84,0.00010999,2]
[333142458,1721885504219,-2072.88,0.00010999,2]
[333142459,1721885504229,-2838.9248536,0.00010999,2]
[333142460,1721885504239,-2072.88,0.00010999,2]
[333142461,1721885504252,-2072.88,0.00010999,2]
[333142462,1721885504261,-2072.88,0.00010999,2]
[333142463,1721885504272,-2072.88,0.00010999,2]
[333142464,1721885504281,-2072.88,0.00010999,2]
[333142465,1721885504291,-2072.88,0.00010999,2]
[333142466,1721885504301,-2072.88,0.00010999,2]
[333142467,1721885504312,-2072.88,0.00010999,2]
[333142468,1721885504322,-500.0,0.00010999,2]
[333142469,1721885504332,-2072.88,0.00010999,2]
[333142470,1721885504342,-442.72621935,0.00010999,2]
[333142471,1721885504352,-2072.88,0.00010999,2]
[333142472,1721885504363,-2072.88,0.00010999,2]
[333142473,1721885504374,-2072.96566175,0.00010999,2]
[333142474,1721885504384,-2911.86,0.00010999,2]
[333142475,1721885504395,-2911.86,0.00010999,2]
[333142476,1721885504405,-2911.86,0.00010999,2]
[333142477,1721885504417,-2911.86,0.00010999,2]
[333142478,1721885504427,-2911.86,0.00010999,2]
[333142479,1721885504437,-2911.86,0.00010999,2]
[333142480,1721885504447,-2911.86,0.00010999,2]
[333142481,1721885504457,-2911.86,0.00010999,2]
[333142482,1721885504467,-2911.86,0.00010999,2]
[333142483,1721885504476,-2911.86,0.00010999,2]
[333142484,1721885504486,-2911.86,0.00010999,2]
[333142485,1721885504495,-2912.00288352,0.00010999,2]
[333142486,1721885504504,-2825.08,0.00010999,2]
[333142487,1721885504514,-2825.08,0.00010999,2]
[333142488,1721885504524,-2825.08,0.00010999,2]
[333142489,1721885504534,-2825.08,0.00010999,2]
[333142490,1721885504544,-2825.08,0.00010999,2]
[333142491,1721885504553,-2825.08,0.00010999,2]
[333142492,1721885504563,-2825.08,0.00010999,2]
[333142493,1721885504573,-2825.08,0.00010999,2]
[333142494,1721885504583,-2825.08,0.00010999,2]
[333142495,1721885504592,-2825.08,0.00010999,2]
[333142496,1721885504602,-2825.08,0.00010999,2]
[333142497,1721885504612,-2825.08,0.00010999,2]
[333142498,1721885504622,-2825.08,0.00010999,2]
[333142499,1721885504631,-2825.15459494,0.00010999,2]
[333142500,1721885504642,-500.0,0.00010999,2]
[333142501,1721885504652,-500.0,0.00010999,2]
[333142502,1721885504665,-500.0,0.00010999,2]
[333142503,1721885504675,-500.0,0.00010999,2]
[333142504,1721885504685,-500.0,0.00010999,2]
[333142505,1721885504696,-728.32,0.00010999,2]
[333142506,1721885504706,-500.0,0.00010999,2]
[333142507,1721885504716,-728.32,0.00010999,2]
[333142508,1721885504726,-500.0,0.00010999,2]
[333142509,1721885504736,-728.32,0.00010999,2]
[333142510,1721885504746,-500.0,0.00010999,2]
[333142511,1721885504756,-728.32,0.00010999,2]
[333142512,1721885504766,-500.0,0.00010999,2]
[333142513,1721885504776,-728.32,0.00010999,2]
[333142514,1721885504786,-610.41564348,0.00010999,2]
[333142515,1721885504795,-728.32,0.00010999,2]
[333142516,1721885504807,-728.32,0.00010999,2]
[333142517,1721885504817,-728.32,0.00010999,2]
[333142518,1721885504828,-728.32,0.00010999,2]
[333142519,1721885504838,-728.32,0.00010999,2]
[333142520,1721885504848,-728.32,0.00010999,2]
[333142521,1721885504858,-728.50025794,0.00010999,2]
[333142522,1721885504868,-1262.86,0.00010999,2]
[333142523,1721885504877,-1262.86,0.00010999,2]
[333142524,1721885504887,-1262.86,0.00010999,2]
[333142525,1721885504897,-1262.86,0.00010999,2]
[333142526,1721885504907,-1262.86,0.00010999,2]
[333142527,1721885504917,-1262.86,0.00010999,2]
[333142528,1721885504927,-1262.86,0.00010999,2]
[333142529,1721885504938,-1262.86,0.00010999,2]
[333142530,1721885504948,-1262.86,0.00010999,2]
[333142531,1721885504960,-1262.86,0.00010999,2]
[333142532,1721885504970,-500.0,0.00010999,2]
[333142533,1721885504979,-1262.86,0.00010999,2]
[333142534,1721885504990,-500.0,0.00010999,2]
[333142535,1721885505000,-1262.86,0.00010999,2]
[333142536,1721885505010,-644.85189502,0.00010999,2]
[333142537,1721885505020,-1262.86,0.00010999,2]
[333142538,1721885505031,-1263.0331436,0.00010999,2]
[333142539,1721885505213,-500.0,0.00010999,2]
[333142540,1721885505223,-277.80997833,0.00010999,2]
[333142541,1721885505232,-2219.42,0.00010999,2]
[333142542,1721885505244,-2219.42,0.00010999,2]
[333142543,1721885505253,-2219.42,0.00010999,2]
[333142544,1721885505263,-2219.42,0.00010999,2]
[333142545,1721885505272,-2219.42,0.00010999,2]
[333142546,1721885505282,-2219.42,0.00010999,2]
[333142547,1721885505292,-2219.42,0.00010999,2]
[333142548,1721885505301,-2219.42,0.00010999,2]
[333142549,1721885505312,-2219.42,0.00010999,2]
[333142550,1721885505322,-2219.42,0.00010999,2]
[333142551,1721885505332,-2219.42,0.00010999,2]
[333142552,1721885505341,-2219.42,0.00010999,2]
[333142553,1721885505351,-3215.54,0.00010999,2]
[333142554,1721885505360,-2219.42,0.00010999,2]
[333142555,1721885505370,-3215.54,0.00010999,2]
[333142556,1721885505379,-500.0,0.00010999,2]
[333142557,1721885505389,-2219.46694743,0.00010999,2]
[333142558,1721885505398,-3215.54,0.00010999,2]
[333142559,1721885505408,-500.0,0.00010999,2]
[333142560,1721885505418,-3215.54,0.00010999,2]
[333142561,1721885505427,-500.0,0.00010999,2]
[333142562,1721885505437,-3215.54,0.00010999,2]
[333142563,1721885505446,-500.0,0.00010999,2]
[333142564,1721885505456,-3215.54,0.00010999,2]
[333142565,1721885505465,-500.0,0.00010999,2]
[333142566,1721885505475,-3215.54,0.00010999,2]
[333142567,1721885505484,-500.0,0.00010999,2]
[333142568,1721885505494,-3215.54,0.00010999,2]
[333142569,1721885505504,-3215.54,0.00010999,2]
[333142570,1721885505513,-500.0,0.00010999,2]
[333142571,1721885505522,-3215.54,0.00010999,2]
[333142572,1721885505532,-3215.54,0.00010999,2]
[333142573,1721885505542,-3215.74288153,0.00010999,2]
[333142574,1721885505552,-500.0,0.00010999,2]
[333142575,1721885505561,-489.18731094,0.00010999,2]
[333142576,1721885505570,-500.0,0.00010999,2]
[333142577,1721885505579,-500.0,0.00010999,2]
[333142578,1721885505589,-500.0,0.00010999,2]
[333142579,1721885505599,-500.0,0.00010999,2]
[333142580,1721885505608,-500.0,0.00010999,2]
[333142581,1721885505618,-500.0,0.00010999,2]
[333142582,1721885505628,-500.0,0.00010999,2]
[333142583,1721885505637,-577.98415267,0.00010999,2]
[333142584,1721885505647,-500.0,0.00010999,2]
[333142585,1721885505658,-500.0,0.00010999,2]
[333142586,1721885505667,-500.0,0.00010999,2]
[333142587,1721885505676,-500.0,0.00010999,2]
[333142588,1721885505686,-500.0,0.00010999,2]
[333142589,1721885505696,-500.0,0.00010999,2]
[333142590,1721885505705,-500.0,0.00010999,2]
[333142591,1721885505715,-500.0,0.00010999,2]
[333142592,1721885505725,-524.56760742,0.00010999,2]
[333142593,1721885505735,-1264.57,0.00010999,2]
[333142594,1721885505744,-1264.57,0.00010999,2]
[333142595,1721885505754,-1264.57,0.00010999,2]
[333142596,1721885505763,-1264.57,0.00010999,2]
[333142597,1721885505773,-1264.57,0.00010999,2]
[333142598,1721885505783,-1264.57,0.00010999,2]
[333142599,1721885505793,-1264.57,0.00010999,2]
[333142600,1721885505802,-1264.57,0.00010999,2]
[333142601,1721885505812,-1264.57,0.00010999,2]
[333142602,1721885505822,-1264.57,0.00010999,2]
[333142603,1721885505831,-1264.57,0.00010999,2]
[333142604,1721885505841,-1264.57,0.00010999,2]
[333142605,1721885505851,-1264.57,0.00010999,2]
[333142606,1721885505862,-1264.57844962,0.00010999,2]
[333142607,1721885505873,-1973.51,0.00010999,2]
[333142608,1721885505882,-1973.51,0.00010999,2]
[333142609,1721885505892,-1973.51,0.00010999,2]
[333142610,1721885505901,-1973.51,0.00010999,2]
[333142611,1721885505912,-1973.51,0.00010999,2]
[333142612,1721885505922,-1973.51,0.00010999,2]
[333142613,1721885505932,-1973.51,0.00010999,2]
[333142614,1721885505941,-1973.51,0.00010999,2]
[333142615,1721885505951,-1973.51,0.00010999,2]
[333142616,1721885505961,-1973.51,0.00010999,2]
[333142617,1721885505970,-1973.51,0.00010999,2]
[333142618,1721885505980,-1973.51,0.00010999,2]
[333142619,1721885505989,-1973.51,0.00010999,2]
[333142620,1721885505999,-1973.62214094,0.00010999,2]
[333142621,1721885506008,-2765.39,0.00010999,2]
[333142622,1721885506018,-2765.39,0.00010999,2]
[333142623,1721885506028,-2765.39,0.00010999,2]
[333142624,1721885506037,-2765.39,0.00010999,2]
[333142625,1721885506046,-2765.39,0.00010999,2]
[333142626,1721885506058,-2765.39,0.00010999,2]
[333142627,1721885506067,-2765.39,0.00010999,2]
[333142628,1721885506077,-2765.39,0.00010999,2]
[333142629,1721885506087,-2765.39,0.00010999,2]
[333142630,1721885506096,-2765.39,0.00010999,2]
[333142631,1721885506105,-2765.39,0.00010999,2]
[333142632,1721885506114,-2765.39,0.00010999,2]
[333142633,1721885506124,-2765.39,0.00010999,2]
[333142634,1721885506133,-2765.42856071,0.00010999,2]
[333142635,1721885506143,-1017.09,0.00010999,2]
[333142636,1721885506152,-1017.09,0.00010999,2]
[333142637,1721885506163,-1017.09,0.00010999,2]
[333142638,1721885506176,-1017.09,0.00010999,2]
[333142639,1721885506186,-1017.09,0.00010999,2]
[333142640,1721885506195,-1817.83,0.00010999,2]
[333142641,1721885506204,-1817.83,0.00010999,2]
[333142642,1721885506214,-1017.09,0.00010999,2]
[333142643,1721885506224,-1817.83,0.00010999,2]
[333142644,1721885506234,-1817.83,0.00010999,2]
[333142645,1721885506244,-1817.83,0.00010999,2]
[333142646,1721885506254,-1817.83,0.00010999,2]
[333142647,1721885506263,-1817.83,0.00010999,2]
[333142648,1721885506273,-1017.09,0.00010999,2]
[333142649,1721885506282,-1817.83,0.00010999,2]
[333142650,1721885506291,-1017.09,0.00010999,2]
[333142651,1721885506301,-1817.83,0.00010999,2]
[333142652,1721885506311,-1017.09,0.00010999,2]
[333142653,1721885506320,-2441.91,0.00010999,2]
[333142654,1721885506330,-1817.83,0.00010999,2]
[333142655,1721885506340,-1017.09,0.00010999,2]
[333142656,1721885506350,-2441.91,0.00010999,2]
[333142657,1721885506360,-1817.83,0.00010999,2]
[333142658,1721885506370,-1017.09,0.00010999,2]
[333142659,1721885506380,-2441.91,0.00010999,2]
[333142660,1721885506389,-1817.83,0.00010999,2]
[333142661,1721885506399,-1017.09,0.00010999,2]
[333142662,1721885506409,-2441.91,0.00010999,2]
[333142663,1721885506418,-1817.83,0.00010999,2]
[333142664,1721885506427,-1017.09,0.00010999,2]
[333142665,1721885506437,-2441.91,0.00010999,2]
[333142666,1721885506447,-2441.91,0.00010999,2]
[333142667,1721885506456,-1818.05982251,0.00010999,2]
[333142668,1721885506466,-1017.09,0.00010999,2]
[333142669,1721885506475,-2441.91,0.00010999,2]
[333142670,1721885506485,-1017.09,0.00010999,2]
[333142671,1721885506495,-2441.91,0.00010999,2]
[333142672,1721885506505,-1017.09,0.00010999,2]
[333142673,1721885506515,-2441.91,0.00010999,2]
[333142674,1721885506524,-1017.30745215,0.00010999,2]
[333142675,1721885506535,-2441.91,0.00010999,2]
[333142676,1721885506545,-2441.91,0.00010999,2]
[333142677,1721885506555,-2441.91,0.00010999,2]
[333142678,1721885506564,-2441.91,0.00010999,2]
[333142679,1721885506574,-2442.09,0.00010999,2]
[333142680,1721885506583,-2223.77,0.00010999,2]
[333142681,1721885506593,-2223.77,0.00010999,2]
[333142682,1721885506603,-2223.77,0.00010999,2]
[333142683,1721885506613,-2223.77,0.00010999,2]
[333142684,1721885506622,-2223.77,0.00010999,2]
[333142685,1721885506632,-167.9531307,0.00010999,2]
[333142686,1721885506642,-2223.77,0.00010999,2]
[333142687,1721885506651,-2223.77,0.00010999,2]
[333142688,1721885506661,-2223.77,0.00010999,2]
[333142689,1721885506671,-2223.77,0.00010999,2]
[333142690,1721885506681,-2223.77,0.00010999,2]
[333142691,1721885506690,-2223.77,0.00010999,2]
[333142692,1721885506700,-2223.77,0.00010999,2]
[333142693,1721885506710,-2223.77,0.00010999,2]
[333142694,1721885506720,-2223.82521689,0.00010999,2]
[333142695,1721885506729,-9662.25,0.00010999,2]
[333142696,1721885506738,-9662.25,0.00010999,2]
[333142697,1721885506748,-9662.25,0.00010999,2]
[333142698,1721885506757,-9662.25,0.00010999,2]
[333142699,1721885506768,-9662.25,0.00010999,2]
[333142700,1721885506778,-9662.25,0.00010999,2]
[333142701,1721885506788,-9662.25,0.00010999,2]
[333142702,1721885506798,-9662.25,0.00010999,2]
[333142703,1721885506807,-9662.25,0.00010999,2]
[333142704,1721885506816,-9662.25,0.00010999,2]
[333142705,1721885506826,-9662.25,0.00010999,2]
[333142706,1721885506837,-9662.25,0.00010999,2]
[333142707,1721885506847,-3137.44,0.00010999,2]
[333142708,1721885506857,-9662.25,0.00010999,2]
[333142709,1721885506866,-9662.29107588,0.00010999,2]
[333142710,1721885506876,-3137.44,0.00010999,2]
[333142711,1721885506886,-3137.44,0.00010999,2]
[333142712,1721885506895,-3137.44,0.00010999,2]
[333142713,1721885506905,-3137.44,0.00010999,2]
[333142714,1721885506915,-3137.44,0.00010999,2]
[333142715,1721885506924,-3137.44,0.00010999,2]
[333142716,1721885506934,-3137.44,0.00010999,2]
[333142717,1721885506943,-3137.44,0.00010999,2]
[333142718,1721885506953,-3137.44,0.00010999,2]
[333142719,1721885506963,-3137.44,0.00010999,2]
[333142720,1721885506972,-3137.44,0.00010999,2]
[333142721,1721885506981,-3137.44,0.00010999,2]
[333142722,1721885506991,-3137.67812192,0.00010999,2]
[333142723,1721885507001,-2162.49,0.00010999,2]
[333142724,1721885507011,-2162.49,0.00010999,2]
[333142725,1721885507021,-2162.49,0.00010999,2]
[333142726,1721885507031,-2162.49,0.00010999,2]
[333142727,1721885507042,-2162.49,0.00010999,2]
[333142728,1721885507052,-2162.49,0.00010999,2]
[333142729,1721885507063,-2162.49,0.00010999,2]
[333142730,1721885507073,-2162.49,0.00010999,2]
[333142731,1721885507083,-2162.49,0.00010999,2]
[333142732,1721885507092,-2162.49,0.00010999,2]
[333142733,1721885507103,-2162.49,0.00010999,2]
[333142734,1721885507114,-2162.49,0.00010999,2]
[333142735,1721885507124,-2162.49,0.00010999,2]
[333142736,1721885507134,-2162.55735849,0.00010999,2]
[333142737,1721885507144,-2943.49,0.00010999,2]
[333142738,1721885507153,-2943.49,0.00010999,2]
[333142739,1721885507163,-2943.49,0.00010999,2]
[333142740,1721885507176,-2672.56,0.00010999,2]
[333142741,1721885507186,-2943.49,0.00010999,2]
[333142742,1721885507196,-2672.56,0.00010999,2]
[333142743,1721885507206,-2672.56,0.00010999,2]
[333142744,1721885507217,-2672.56,0.00010999,2]
[333142745,1721885507227,-2943.49,0.00010999,2]
[333142746,1721885507236,-2672.56,0.00010999,2]
[333142747,1721885507247,-2943.49,0.00010999,2]
[333142748,1721885507258,-2672.56,0.00010999,2]
[333142749,1721885507267,-2943.49,0.00010999,2]
[333142750,1721885507276,-2672.56,0.00010999,2]
[333142751,1721885507286,-2943.49,0.00010999,2]
[333142752,1721885507295,-2672.56,0.00010999,2]
[333142753,1721885507305,-2943.49,0.00010999,2]
[333142754,1721885507314,-2672.56,0.00010999,2]
[333142755,1721885507323,-2672.56,0.00010999,2]
[333142756,1721885507333,-2672.56,0.00010999,2]
[333142757,1721885507342,-2672.56,0.00010999,2]
[333142758,1721885507351,-2672.56,0.00010999,2]
[333142759,1721885507362,-500.0,0.00010999,2]
[333142760,1721885507371,-2672.56831434,0.00010999,2]
[333142761,1721885507380,-500.0,0.00010999,2]
[333142762,1721885507390,-500.0,0.00010999,2]
[333142763,1721885507400,-500.0,0.00010999,2]
[333142764,1721885507410,-2943.49,0.00010999,2]
[333142765,1721885507419,-500.0,0.00010999,2]
[333142766,1721885507430,-2943.49,0.00010999,2]
[333142767,1721885507439,-500.0,0.00010999,2]
[333142768,1721885507448,-2943.49,0.00010999,2]
[333142769,1721885507458,-500.0,0.00010999,2]
[333142770,1721885507467,-2943.49,0.00010999,2]
[333142771,1721885507476,-500.0,0.00010999,2]
[333142772,1721885507485,-2943.59748789,0.00010999,2]
[333142773,1721885507495,-500.0,0.00010999,2]
[333142774,1721885507504,-500.0,0.00010999,2]
[333142775,1721885507514,-500.0,0.00010999,2]
[333142776,1721885507523,-394142.45214748,0.00011,2]
[333142777,1721885508338,-500.0,0.00010999,2]
[333142778,1721885508347,-2014.05,0.00011,2]
[333142779,1721885508371,-1001.05696644,0.00010979,2]
[333142780,1721885508399,-729.05303356,0.00010979,2]
[333142781,1721885508409,-1645.65,0.00010995,2]
[333142782,1721885508418,-2470.82,0.00010998,2]
[333142783,1721885508428,-27084.46994452,0.00011,2]
[333142784,1721885508439,-963.86,0.00011,2]
[333142785,1721885509096,-4457.73,0.00010958,2]
[333142786,1721885509106,-499.30211251,0.00010979,2]
[333142787,1721885564481,250.29,8.219e-05,2]
[333142788,1721885626079,159.30622361,8.219e-05,2]
[333142789,1721885626105,872.30128325,8.219e-05,2]
[333142790,1721885639610,411.94625857,8.219e-05,2]
[333142791,1721885641001,170.59,8.219e-05,2]
[333142792,1721885655473,176.95169995,8.219e-05,2]
[333142793,1721885656457,1371.37321572,8.219e-05,2]
[333142794,1721885656889,364.02457016,8.219e-05,2]
[333142799,1721885759118,292.04853185,8.219e-05,2]
[333142800,1721885837160,2000.0,8.3e-05,2]
[333142801,1721885994473,191.59,7.968e-05,2]
[333142802,1721886088968,357.29,8.219e-05,2]
[333142803,1721886106160,871.0274112,7.968e-05,2]
[333142804,1721886125153,291.18643211,8.219e-05,2]
[333142805,1721886158130,411.34916256,8.219e-05,2]
[333142806,1721886170201,363.49694699,8.219e-05,2]
[333142807,1721886191042,158.83612492,8.219e-05,2]
[333142808,1721886206093,871.0274112,8.219e-05,2]
[333142809,1721886232663,291.18643211,8.219e-05,2]
[333142810,1721886232701,170.89,8.219e-05,2]
[333142811,1721886234663,2000.0,8.9e-05,2]
[333142812,1721886245945,363.49694699,8.219e-05,2]
[333142813,1721886263133,411.34916256,8.219e-05,2]
[333142814,1721886287660,329.60767247,1.111e-05,2]
[333142815,1721886303098,786.71698008,8.219e-05,2]
[333142816,1721886318052,158.83612492,8.219e-05,2]
[333142817,1721886328945,363.49694699,8.219e-05,2]
[333142818,1721886337173,291.18643211,8.219e-05,2]
[333142819,1721886345175,291.23134751,8.219e-05,2]
[333142820,1721886378369,245.63844622,8.219e-05,2]
[333142821,1721886410555,202.36168924,8.219e-05,2]
[333142822,1721886415973,363.49694699,8.219e-05,2]
[333142823,1721886504048,15694.45611241,0.00015,120]
[333142824,1721886506462,363.49694699,8.219e-05,2]
[333142831,1721886572819,181.0,7.903e-05,2]
[333142832,1721886579963,187.67884598,8.219e-05,2]
[333142847,1721886631775,-181.0,9.221e-05,2]
[333142848,1721886631786,-496.89,9.859e-05,2]
[333142849,1721886631797,-250.0,9.91e-05,2]
[333142850,1721886631807,-300.22482033,9.934e-05,2]
[333142851,1721886631820,-699.77517967,9.934e-05,2]
[333142852,1721886631832,-169.69,9.935e-05,2]
[333142853,1721886631842,-300.0,9.947e-05,2]
[333142854,1721886631854,-18912.00276193,9.948e-05,2]
[333142855,1721886632002,-1842.26723807,9.948e-05,2]
[333142856,1721886632012,-659.69,9.962e-05,2]
[333142857,1721886632022,-500.0,9.962e-05,2]
[333142858,1721886632032,-500.0,0.0001,2]
[333142859,1721886632042,-307.29,0.0001,2]
[333142860,1721886632052,-499.99,0.0001,2]
[333142861,1721886632061,-150.0,0.00010473,2]
[333142862,1721886632070,-357.29,0.00010474,2]
[333142863,1721886632080,-178.04,0.00010474,2]
[333142864,1721886632089,-1671.53276193,0.00010474,2]
[333142865,1721886632100,-1035.77425926,0.00010474,2]
[333142866,1721886632113,-563.52333975,0.00010474,2]
[333142867,1721886632129,-2109.53481332,0.00010474,2]
[333142887,1721886637786,-2469.0038251,0.00010474,2]
[333142888,1721886638071,-1288.92764,0.00010474,2]
[333142889,1721886638084,-182.60336064,0.00010474,2]
[333142890,1721886638094,-181.0,0.00010538,2]
[333142891,1721886638104,-647.32475251,0.00010683,2]
[333142892,1721886638121,-149.83524749,0.00010683,2]
[333142893,1721886638131,-1019.07829889,0.00010683,2]
[333142894,1721886638142,-1188.16170111,0.00010683,2]
[333142896,1721886638152,-471.83264253,0.00010684,2]
[333142897,1721886638165,-1428.16735747,0.00010684,2]
[333142898,1721886638175,-611.83829889,0.00010684,2]
[333142899,1721886638186,-348.90998,0.00010684,2]
[333142900,1721886638217,-665.93603305,0.00010684,2]
[333142901,1721886638229,-673.31568806,0.00010684,2]
[333142902,1721886638238,-1196.42870424,0.00010858,2]
[333142903,1721886638266,-6327.89069576,0.00010858,2]
[333142904,1721886638276,-941.2702,0.00010858,2]
[333142905,1721886638285,-1522.9613,0.00010858,2]
[333142906,1721886638295,-320.7457,0.00010858,2]
[333142907,1721886638307,-150.44057,0.00010889,2]
[333142908,1721886638316,-1000.0,0.00010898,2]
[333142909,1721886638325,-500.0,0.00010912,2]
[333142910,1721886638336,-420.0,0.00010942,2]
[333142911,1721886638346,-500.0,0.00010958,2]
[333142913,1721886638355,-500.0,0.00010958,2]
[333142916,1721886638368,-500.0,0.00010958,2]
[333142917,1721886638377,-191.29153424,0.00010958,2]
[333142920,1721886638390,-25.6742836,0.00010958,2]
[333142922,1721886638400,-500.0,0.00010958,2]
[333142924,1721886638409,-500.0,0.00010958,2]
[333142926,1721886638419,-500.0,0.00010958,2]
[333142928,1721886638429,-500.0,0.00010958,2]
[333142930,1721886638438,-500.0,0.00010958,2]
[333142932,1721886638448,-500.0,0.00010958,2]
[333142934,1721886638457,-500.0,0.00010958,2]
[333142936,1721886638467,-500.0,0.00010958,2]
[333142938,1721886638478,-500.0,0.00010958,2]
[333142940,1721886638487,-500.0,0.00010958,2]
[333142942,1721886638500,-500.0,0.00010958,2]
[333142944,1721886638510,-500.0,0.00010958,2]
[333142946,1721886638520,-500.0,0.00010958,2]
[333142948,1721886638530,-500.0,0.00010958,2]
[333142950,1721886638539,-500.0,0.00010958,2]
[333142952,1721886638549,-500.0,0.00010958,2]
[333142954,1721886638558,-500.0,0.00010958,2]
[333142956,1721886638567,-500.0,0.00010958,2]
[333142958,1721886638578,-607.55991692,0.00010958,2]
[333142960,1721886638587,-254.75407008,0.00010958,2]
[333142962,1721886638597,-1828.17,0.00010958,2]
[333142964,1721886638606,-1828.17,0.00010958,2]
[333142966,1721886638617,-500.0,0.00010958,2]
[333142968,1721886638627,-500.0,0.00010958,2]
[333142970,1721886638636,-500.0,0.00010958,2]
[333142972,1721886638646,-500.0,0.00010958,2]
[333142973,1721886638655,-500.0,0.00010958,2]
[333142975,1721886638665,-504.06244962,0.00010958,2]
[333142977,1721886638674,-601.69,0.00010958,2]
[333142979,1721886638683,-601.69,0.00010958,2]
[333142981,1721886638692,-500.0,0.00010958,2]
[333142983,1721886638702,-500.0,0.00010958,2]
[333142985,1721886638712,-2098.34,0.00010958,2]
[333142987,1721886638721,-2098.34,0.00010958,2]
[333142989,1721886638731,-728.71,0.00010958,2]
[333142991,1721886638740,-728.71,0.00010958,2]
[333142993,1721886638750,-1140.54,0.00010958,2]
[333142995,1721886638759,-1140.54,0.00010958,2]
[333142997,1721886638769,-558.87,0.00010958,2]
[333142999,1721886638778,-558.87,0.00010958,2]
[333143001,1721886638788,-594.09875205,0.00010958,2]
[333143003,1721886638797,-500.0,0.00010958,2]
[333143005,1721886638807,-2557.2,0.00010958,2]
[333143007,1721886638816,-2557.2,0.00010958,2]
[333143009,1721886638825,-788.04584805,0.00010958,2]
[333143011,1721886638837,-479.77415195,0.00010958,2]
[333143013,1721886638847,-83.57089879,0.00010958,2]
[333143015,1721886638860,-1184.24910121,0.00010958,2]
[333143017,1721886638870,-500.0,0.00010958,2]
[333143019,1721886638880,-500.0,0.00010958,2]
[333143021,1721886638890,-500.0,0.00010958,2]
[333143023,1721886638899,-500.0,0.00010958,2]
[333143025,1721886638908,-500.0,0.00010958,2]
[333143027,1721886638918,-1281.65,0.00010958,2]
[333143029,1721886638927,-1281.65,0.00010958,2]
[333143031,1721886638936,-500.0,0.00010958,2]
[333143033,1721886638946,-500.0,0.00010958,2]
[333143035,1721886638956,-500.0,0.00010958,2]
[333143037,1721886638965,-500.0,0.00010958,2]
[333143039,1721886638975,-500.0,0.00010958,2]
[333143041,1721886638985,-500.0,0.00010958,2]
[333143043,1721886638995,-500.0,0.00010958,2]
[333143045,1721886639005,-500.0,0.00010958,2]
[333143047,1721886639015,-1768.76,0.00010958,2]
[333143049,1721886639024,-1768.76,0.00010958,2]
[333143051,1721886639034,-492.88908003,0.00010958,2]
[333143053,1721886639044,-500.0,0.00010958,2]
[333143055,1721886639054,-500.0,0.00010958,2]
[333143057,1721886639063,-500.0,0.00010958,2]
[333143059,1721886639073,-500.0,0.00010958,2]
[333143061,1721886639082,-518.33,0.00010958,2]
[333143063,1721886639092,-500.0,0.00010958,2]
[333143065,1721886639101,-500.0,0.00010958,2]
[333143067,1721886639114,-500.0,0.00010958,2]
[333143069,1721886639123,-500.0,0.00010958,2]
[333143071,1721886639133,-500.0,0.00010958,2]
[333143073,1721886639142,-1698.37,0.00010958,2]
[333143076,1721886639152,-1698.37,0.00010958,2]
[333143078,1721886639162,-1339.25,0.00010958,2]
[333143080,1721886639172,-1339.25,0.00010958,2]
[333143082,1721886639182,-1170.29,0.00010958,2]
[333143084,1721886639192,-1170.29,0.00010958,2]
[333143086,1721886639201,-500.0,0.00010958,2]
[333143088,1721886639211,-500.0,0.00010958,2]
[333143090,1721886639221,-500.0,0.00010958,2]